Cogmind - Beta 13 @@@ ROGUE MODE // 2024.06.06 @ 15:27:30 Player: wd Result: Destroyed by G-34 Mercenary with Small Laser Performance ------------- Evolutions (1) 500 Regions Visited (3) 600 Robots Destroyed (19) 95 Value Destroyed (558) 558 Prototype IDs (2) 40 Alien Tech Used (0) 0 Bonus (0) 0 TOTAL SCORE: 1793 Bonus ------- None Cogmind --------- Core Integrity 0/400 Matter 300/300 Energy 100/100 System Corruption 0% Temperature Cool (6) Movement Core (350) Ox6 Location -9/Materials Parts ------- > --- POWER (1) -------- (None) > --- PROPULSION (3) --- (None) > --- UTILITY (3) ------ Large Storage Unit Signal Interpreter > --- WEAPON (2) ------- (None) > --- INVENTORY (15) --- Ion Engine Weight Redist. System Visual Processing Unit Visual Processing Unit Experimental Sensor Array Targeting Computer Medium Armor Plating Peak State ------------ > --- POWER ------------ Light Nuclear Core > --- PROPULSION ------- Aluminum Leg Aluminum Leg > --- UTILITY ---------- Medium Storage Unit Medium Matter Pod > --- WEAPON ----------- Autogun Autogun > --- INVENTORY -------- Ion Engine Ion Engine Aluminum Leg Weight Redist. System Visual Processing Unit Visual Processing Unit Signal Interpreter Targeting Computer Light Assault Rifle Light Assault Rifle [Rating: 12] Favorites ----------- Power Ion Engine Engine Ion Engine Power Core Light Nuclear Core Propulsion Aluminum Leg Leg Aluminum Leg Hover Unit Hover Unit Utility Medium Matter Pod Storage Medium Matter Pod Processor Signal Interpreter Weapon Autogun Ballistic Gun Autogun Build | -11 -10 -10 -9 ------- Run | Yrd Mat Min Mat Slots Evolved 2 | . . . 2 Power . | . . . . Propulsion 1 | . . . 1 Utility 1 | . . . 1 Weapon . | . . . . Parts Attached 23 | 5 9 2 7 Power 4 | 1 . 2 1 Engine 3 | 1 . 1 1 Core 1 | . . 1 . Reactor . | . . . . Propulsion 8 | 2 4 . 2 Treads . | . . . . Leg 6 | 2 2 . 2 Wheel . | . . . . Hover 2 | . 2 . . Flight . | . . . . Utility 5 | 1 2 . 2 Device . | . . . . Storage 4 | 1 2 . 1 Processor 1 | . . . 1 Hackware . | . . . . Protection . | . . . . Artifact . | . . . . Weapon 6 | 1 3 . 2 Energy Gun . | . . . . Energy Cannon . | . . . . Ballistic Gun 6 | 1 3 . 2 Ballistic Cannon . | . . . . Launcher . | . . . . Special Weapon . | . . . . Impact Weapon . | . . . . Slashing Weapon . | . . . . Piercing Weapon . | . . . . Special Melee Weapon . | . . . . Unidentified Prototypes . | . . . . Parts Lost 10 | . . 1 9 Power 3 | . . 1 2 Propulsion 2 | . . . 2 Utility 1 | . . . 1 Weapon 4 | . . . 4 Highest Loss Streak 6 | . . 1 6 To Critical Strikes . | . . . . Average Slot Usage (%) 92 | . 95 99 85 Engine 10 | . 14 7 9 Core 1 | . . 5 . Leg 26 | . 27 28 24 Storage 23 | . 23 28 20 Processor 3 | . . . 11 Ballistic Gun 24 | . 28 28 19 Naked Turns . | . . . . Heaviest Build 29 | 11 23 23 29 Greatest Support 30 | 20 20 20 30 Greatest Overweight (x) 3 | 3 1 1 1 Average Overweight (x) . | . . 1 . Largest Inventory Capacity 15 | 8 10 10 15 Average Capacity 10 | 7 9 10 11 Most Carried 10 | 3 10 10 9 Average Carried 6 | 1 4 9 7 Final Capacity 15 | 8 10 10 15 Final Carried 10 | 3 10 9 7 Class Distribution -------------------- 87% | Mutant 12% | Scavenger-Mutant Dominant Class ---------------- Mutant | -10/Materials Mutant | -10/Mines Mutant | -9/Materials Resources | -11 -10 -10 -9 ----------- Run | Yrd Mat Min Mat Matter Collected 825 | 215 123 342 145 Remotely . | . . . . Salvage Created 653 | . 158 259 236 Parts 40 | . 12 10 18 Haulers Intercepted 1 | . 1 . . Recyclers Shooed 2 | . 1 . 1 Parts Field Recycled . | . . . . Retrieved Matter . | . . . . Parts Self-Destructed . | . . . . Prevented . | . . . . Kills | -11 -10 -10 -9 ------- Run | Yrd Mat Min Mat Combat Hostiles Destroyed 16 | . 2 6 8 Guns 16 | . 2 6 8 Classes Destroyed 4 | . 3 . 1 Hauler 1 | . 1 . . Watcher 2 | . 2 . . Swarmer 3 | . . . 3 Grunt 13 | . 2 6 5 Best Kill Streak 4 | . 2 4 4 Combat Bots Only 4 | . 1 4 4 Max Kills in Single Turn 1 | . 1 1 1 Gunslinging . | . . . . Exploded . | . . . . Melee . | . . . . Uniques/NPCs Destroyed . | . . . . Combat | -11 -10 -10 -9 -------- Run | Yrd Mat Min Mat Hostile Shots Fired 193 | . 11 55 127 Missed 54 | . 6 14 34 Damage Taken 1612 | . 53 567 992 Core 598 | . . 189 409 Absorbed by Shields . | . . . . Core Remaining (%) 62 | 100 . 24 . Volleys Fired 80 | . 20 28 32 Largest 2 | . 2 2 2 Hottest 46 | . 40 46 43 Shots Fired 148 | . 40 56 52 Gun 148 | . 40 56 52 Cannon . | . . . . Launcher . | . . . . Special . | . . . . Kinetic 148 | . 40 56 52 Thermal . | . . . . Explosive . | . . . . Electromagnetic . | . . . . Robot Hit Streak 11 | . 5 11 7 Robot Miss Streak 4 | . 3 3 4 Penetration Max . | . . . . Secondary Targets 1 | . . 1 . Max Gunslinging Chain 1 | . . 1 . Shots Hit Robots 91 | . 24 33 34 Core Hits 47 | . 13 14 20 Critical Kills . | . . . . Critical Parts Destroyed . | . . . . Critical Strikes . | . . . . Melee Attacks . | . . . . Impact . | . . . . Slashing . | . . . . Piercing . | . . . . Sneak Attacks . | . . . . Combat Hostiles . | . . . . Follow-up Attacks . | . . . . Damage Inflicted 1070 | . 208 473 389 Guns 1038 | . 204 473 361 Cannons . | . . . . Explosions . | . . . . Melee . | . . . . Ramming 32 | . 4 . 28 Kinetic 1038 | . 204 473 361 Thermal . | . . . . Explosive . | . . . . Electromagnetic . | . . . . Impact . | . . . . Slashing . | . . . . Piercing . | . . . . Highest Corruption . | . . . . Average Corruption . | . . . . Corruption Purged . | . . . . Corruption Blocked . | . . . . Overload Shots . | . . . . Overflow Damage . | . . . . Projectiles . | . . . . Explosions . | . . . . Melee . | . . . . Knockbacks . | . . . . Impact . | . . . . Kinetic . | . . . . Secondary . | . . . . Self-Inflicted Damage . | . . . . Shots . | . . . . Rammed 6 | . . . 6 Targets Rammed 18 | . 1 . 17 Kicked 12 | . 1 . 11 Crushed . | . . . . Highest Temperature 65 | . 10 65 15 Average Temperature 17 | . 6 22 5 Received Heat Transfer 819 | . 30 333 456 Siege Activations . | . . . . Robots Corrupted . | . . . . Combat Hostiles . | . . . . Parts Fried . | . . . . Impact Corruptions . | . . . . Robots Melted . | . . . . Combat Hostiles . | . . . . Parts Melted . | . . . . Heat Transferred . | . . . . Parts Sabotaged . | . . . . Parts Stolen . | . . . . Parts Stripped . | . . . . Power Chain Reactions . | . . . . Alert | -11 -10 -10 -9 ------- Run | Yrd Mat Min Mat Peak Influence 215 | . 126 140 215 Initial 54 | . . . 54 Average 82 | . 70 85 105 Maximum Alert Level 1 | . . . 1 Low Security (%) 92 | 100 100 100 77 Level 1 7 | . . . 22 Level 2 . | . . . . Level 3 . | . . . . Level 4 . | . . . . Level 5 . | . . . . High Security . | . . . . Max Security . | . . . . Squads Dispatched 5 | . 3 . 2 Investigation 3 | . 1 . 2 Extermination . | . . . . Reinforcement 2 | . 2 . . Assault . | . . . . Garrison . | . . . . Intercept . | . . . . Searches Triggered . | . . . . Construction Impeded . | . . . . Haulers Reinforced . | . . . . Active Scanning Responses . | . . . . Cargo Convoy Interrupts . | . . . . Stealth | -11 -10 -10 -9 --------- Run | Yrd Mat Min Mat Distress Signals 1 | . 1 . . Communications Jammed . | . . . . Distress Signals . | . . . . Times Spotted 32 | . 9 6 17 Peak Tracking Total 5 | . 4 4 5 Tactical Retreats 2 | . 1 . 1 Traps | -11 -10 -10 -9 ------- Run | Yrd Mat Min Mat Traps Triggered . | . . . . Indirectly . | . . . . Trap Hack Attempts . | . . . . Triggered . | . . . . Disarmed . | . . . . Reprogrammed . | . . . . Reused . | . . . . Traps Extracted . | . . . . Installed . | . . . . Triggered . | . . . . Machines | -11 -10 -10 -9 ---------- Run | Yrd Mat Min Mat Machines Disabled . | . . . . Max in Single Turn . | . . . . Machines Repaired . | . . . . Machines Dismantled . | . . . . Machines Sabotaged . | . . . . Overloaded Fab Kills . | . . . . Hacking | -11 -10 -10 -9 --------- Run | Yrd Mat Min Mat Machines Accessed 4 | . 1 . 3 Terminals 3 | . 1 . 2 Fabricators . | . . . . Repair Stations 1 | . . . 1 Recycling Units . | . . . . Scanalyzers . | . . . . Garrison Access . | . . . . Total Hacks 13 | . 4 . 9 Successful 6 | . 1 . 5 Failed 7 | . 3 . 4 Catastrophic . | . . . . Database Lockouts . | . . . . Manual . | . . . . Terminals 10 | . 4 . 6 Fabricators . | . . . . Repair Stations 3 | . . . 3 Recycling Units . | . . . . Scanalyzers . | . . . . Garrison Access . | . . . . Terminal Hacks 5 | . 1 . 4 Prototype ID Bank 1 | . . . 1 Emergency Access Points 1 | . . . 1 Unreport Threat 1 | . . . 1 Locate Traps 1 | . . . 1 Zone Layout 1 | . 1 . . Fabricator Hacks . | . . . . Repair Station Hacks 1 | . . . 1 Scan Component 1 | . . . 1 Recycling Unit Hacks . | . . . . Scanalyzer . | . . . . Garrison Access Hacks . | . . . . Unauthorized Hacks . | . . . . Terminals . | . . . . Fabricators . | . . . . Repair Stations . | . . . . Recycling Units . | . . . . Scanalyzers . | . . . . Garrison Access . | . . . . Data Cores Recovered . | . . . . Used . | . . . . Hacking Detections 4 | . 1 . 3 Full Trace Events 4 | . 1 . 3 Feedback Events . | . . . . Feedback Blocked . | . . . . Robot Schematics Acquired . | . . . . Robots Built . | . . . . Authchips . | . . . . Time . | . . . . Total Robot Build Rating . | . . . . Part Schematics Acquired . | . . . . Parts Built . | . . . . Authchips . | . . . . Time . | . . . . Total Part Build Rating . | . . . . Parts Repaired . | . . . . Time . | . . . . Parts Recycled . | . . . . Recycled Matter . | . . . . Retrieved Matter . | . . . . Retrieved Components . | . . . . Parts Scanalyzed . | . . . . Part Schematics Acquired . | . . . . Parts Damaged . | . . . . Bothacking | -11 -10 -10 -9 ------------ Run | Yrd Mat Min Mat Used RIF Installer . | . . . . Robots Hacked . | . . . . Non-combat . | . . . . Combat . | . . . . Robot Hacks Applied . | . . . . Relay Couplers Released . | . . . . Fabnet Peak Effective % . | . . . . Robots Rewired . | . . . . Allies Hacked . | . . . . Hacks Repelled . | . . . . Allies | -11 -10 -10 -9 -------- Run | Yrd Mat Min Mat Total Allies . | . . . . Largest Group . | . . . . Highest-Rated Group . | . . . . Highest-Rated Ally . | . . . . Total Orders . | . . . . Ally Attacks . | . . . . Total Damage . | . . . . Kills . | . . . . Allies Corrupted . | . . . . Allies Melted . | . . . . Intel | -11 -10 -10 -9 ------- Run | Yrd Mat Min Mat Robot Analysis Total . | . . . . Derelict Logs Recovered . | . . . . Drone Launches . | . . . . Drone Recoveries . | . . . . Exploration | -11 -10 -10 -9 ------------- Run | Yrd Mat Min Mat Turns Passed 1232 | 67 418 335 412 Spaces Moved 610 | 47 248 132 183 Core 12 | 12 . . . Treads . | . . . . Legs 598 | 35 248 132 183 Wheels . | . . . . Hover . | . . . . Flight . | . . . . Fastest Speed 50 | 50 120 190 120 Average Speed 149 | 115 132 190 153 Slowest Speed 200 | 200 190 190 190 Overloaded Moves . | . . . . Propulsion Burnouts . | . . . . Robots Hopped . | . . . . Cave-ins Triggered . | . . . . Exploration Rate (%) 26 | 4 55 31 16 Regions Visited 3 Branch Regions 1 Pre-discovered Areas . | . . . . Known Exits Taken . | . . . . Unknown Exits Taken 3 | 1 1 1 . Scrap Searched . | . . . . Spaces Dug . | . . . . Terrain Destroyed . | . . . . Melee . | . . . . Projectile . | . . . . AOE . | . . . . Terrain Rammed . | . . . . Walls Destroyed . | . . . . Machines Disabled . | . . . . Actions | -11 -10 -10 -9 --------- Run | Yrd Mat Min Mat Total 788 | 59 306 172 251 Wait 12 | . 10 1 1 Move 607 | 46 247 131 183 Hop . | . . . . Pick Up 29 | 8 13 2 6 Fast Attach . | . . . . Attach 15 | 5 4 1 5 Detach 3 | . 2 . 1 Swap 8 | . 5 1 2 Drop 10 | . 4 2 4 Fire 80 | . 20 28 32 Melee . | . . . . Ram 6 | . . . 6 Kick 12 | . 1 . 11 Crush . | . . . . Escape Stasis . | . . . . Rewire 6 | . . 6 . Trap . | . . . . Miscellaneous . | . . . . Route ------- -11/Scrapyard -10/Materials (discovered 2 exits: *Mat / [*Min]) -10/Mines (discovered 2 exits: *Mat x2) -9/Materials (discovered 1 exit: *Sto) History --------- Turn | Location | Event 25 | -11/Scrapyard | Discovered new exit (range 16) 68 | -11/Scrapyard | Entered Materials 329 | -10/Materials | Build established: Mutant 341 | -10/Materials | Discovered new exit (range 4) 388 | -10/Materials | Discovered new exit (range 14) 486 | -10/Materials | Entered Mines 609 | -10/Mines | Found a damaged Exp. Sensor Array with a note attached 648 | -10/Mines | Core integrity fell below 50% 726 | -10/Mines | Found Prototype Device 733 | -10/Mines | Discovered new exit (range 7) 805 | -10/Mines | Discovered new exit (range 8) 821 | -10/Mines | Entered Materials 821 | -9/Materials | Evolved 2 slots: Propulsion x1, Utility x1 824 | -9/Materials | Discovered new exit (range 4) 828 | -9/Materials | Identified exit to Storage 1203 | -9/Materials | Core integrity fell below 50% 1220 | -9/Materials | Core integrity fell below 20% 1233 | -9/Materials | Destroyed by G-34 Mercenary with Small Laser Last Messages --------------- G-47 Trooper destroyed. Kicked G-34 Mercenary. Lgt. Assault Rifle destroyed. R-06 Scavenger collects Imp. Heat Sink. Kicked G-34 Mercenary. R-06 Scavenger collects Aluminum Leg. Lgt. Assault Rifle destroyed. Kicked G-34 Mercenary. Aluminum Leg destroyed. Slammed into G-34 Mercenary. Destabilizing: System interference. Signal Interpreter temporarily disabled. Slammed into G-34 Mercenary. K-01 Serf collects debris. Slammed into G-34 Mercenary. K-01 Serf cleans the Repair Station. Slammed into G-34 Mercenary. K-01 Serf cleans the Repair Station. Slammed into G-34 Mercenary. K-01 Serf cleans the Repair Station. Map ----- +----------------------------------------------------+ | # # # ## ???? | | # # """# ###### ###+#######T#####+####???????? | | # # """# #????# # ###????????????????? | | # # """# #????# # #??????????????????? | | # # # #????# # """ """ #??????????????????? | | # ##+##### #????# # """ """ #??????????????????? | | # #???? #????# # """ """ #??????????????????? | | # #???? ?????# # #??????????????????? | | # #???? ?????# # #??????????????????? | | # #???? ?????# # #??????????????????? | | #+##+###?#??????# ###+#######??????????????????? | | #?# ###### #?# #????????????????????????? | | T" #?# ###+####?????????????????????? | | #?# # #?????????????????????? | | #?# T # #?????????????????????? | | ########?# ?# #?????????????????????? | | ?????????? # " " #?????????????????????? | | ??????????? """ # "R" #?????????????????????? | | ??????????? """ + """k%#?????????????????????? | | ??????????? """ #####/##?????????????????????? | | ?????????? #####g#??????????????????????? | | ?????????# %%#??????????????????????? | | ?????????###/#####+######%#??????????????????????? | | ????????????????????????#%#??????????????????????? | | ????????????????????????#%#??????????????????????? | | ????????????????????????#@#??????????????????????? | | ????????????????????????#g#??????????????????????? | | ???????????????????????? ??????????????????????? | | ???????????????????????? ??????????????????????? | | ???????????????????????# rg"?????????????????????? | | ???????????????????????# "?????????????????????? | | ???????????????????????# ! ""????????????????????? | | ???????????????????????# ????????????????????? | | ???????????????????????##+###????????????????????? | | ????????????????????????? ???????????????????????? | | ????????????????????????? ???????????????????????? | | ????????????????????????? ???????????????????????? | | ?????????????????????????????????????????????????? | | ?????????????????????????????????????????????????? | | ?????????????????????????????????????????????????? | | ?????????????????????????????????????????????????? | | ?????????????????????????????????????????????????? | | ?????????????????????????????????????????????????? | | ?????????????????????????????????????????????????? | | ?????????????????????????????????????????????????? | | ?????????????????????????????????????????????????? | | ?????????????????????????????????????????????????? | | ?????????????????????????????????????????????????? | | ?????????????????????????????????????????????????? | | ?????????????????????????????????????????????????? | +----------------------------------------------------+ Best States ------------- Heat Dissipation 28 Energy Generation 14 Energy Capacity 250 Matter Stores 400 Matter Capacity 400 Sight Range 16 Terrain Scan Density 10 Evasion (%) 55 Item Schematics ----------------- None Robot Schematics ------------------ None Fabricated ------------ Nothing Alien Tech Used ----------------- None Achievements -------------- None Challenges ------------ None Game ------ Seed TeslaGlidesysBoregun Manual? 0 Play Time 00:17:31 Cumulative 10.5 hours Start 2024.06.06 @ 15:12:28 End 2024.06.06 @ 15:27:30 Sessions 1 Manual Loads 0 Difficulty Rogue Special Mode None Game No. 13 Rogue 13 Adventurer 0 Explorer 0 Win Type - Total 0 Types 0/0/0/0/0/0/0/0/0 Lore% 6 Gallery% 11 Achievement% 14 Wizard Run 0 Options --------- Layout 1 ASCII 0 Keyboard 1 Movement Numpad Keybinds 0 Fullscreen 1 Font 32/SmallcapsGlow Map View 50x35 Zoom Use 0% Tactical HUD 0 Map Filters NONE Filters NONE Steam 1 RUN: 85b43426-e27a-4742-bcb1-eda4dab4ba94